[Event "FIDE World Cadets GU12 2022"]
[Site "Batumi"]
[Date "2022.09.16"]
[Round "1"]
[White "Maklakova, Naomi"]
[Black "Koscelnikova, Monika"]
[Result "1-0"]
[ECO "D02"]
[WhiteElo "1635"]
[BlackElo "1265"]
[Annotator "NA COMBH"]
[PlyCount "53"]
[EventDate "2022.09.16"]
[EventType "swiss"]
[EventCountry "GEO"]
[SourceTitle "playchess.com"]
[Source "ChessBase"]
[SourceQuality "1"]
[TimeControl "5400+30"]

1. d4 {[%emt 0:01:00]} d5 {[%emt 0:01:00]} 2. Nf3 {[%emt 0:00:30]} Nf6 {[%emt 0:00:30]} 3. Bf4 {[%emt 0:00:00]} Bf5 {[%emt 0:00:30]} 4. e3 {[%emt 0:00:00]} e6 {[%emt 0:00:00]} 5. Bd3 {[%emt 0:01:30]} Bg6 {[%emt 0:00:00]} 6. Ne5 {[%emt 0:07:30]} Bd6 {[%emt 0:03:30]} 7. Bg5 {[%emt 0:03:30]} Nbd7 {[%emt 0:02:30]} 8. f4 {[%emt 0:04:30]} a6 {[%emt 0:13:30]} 9. O-O {[%emt 0:04:30]} c5 {[%emt 0:06:30]} 10. c4 {[%emt 0:15:30]} Qb6 {[%emt 0:05:30]} 11. Rf2 {[%emt 0:19:30]} cxd4 {[%emt 0:03:30]} 12. Bxg6 {[%emt 0:00:30]} hxg6 {[%emt 0:07:30]} 13. Nxd7 {[%emt 0:04:30]} Kxd7 {[%emt 0:03:30]} 14. exd4 {[%emt 0:02:30]} dxc4 {[%emt 0:01:30]} 15. Bxf6 {[%emt 0:03:30]} gxf6 {[%emt 0:01:30]} 16. Nc3 {[%emt 0:00:30]} Qa5 {[%emt 0:06:30]} 17. Ne4 {[%emt 0:07:30]} Qf5 {[%emt 0:02:30]} 18. Qf3 {[%emt 0:02:30]} b5 {[%emt 0:02:30]} 19. Rd1 {[%emt 0:00:30]} Ke7 {[%emt 0:03:30]} 20. d5 {[%emt 0:06:21]} Qh5 {[%emt 0:05:30]} 21. Qxh5 {[%emt 0:01:41]} Rxh5 {[%emt 0:00:30]} 22. dxe6 {[%emt 0:00:20]} Bb8 {[%emt 0:07:30]} 23. g4 {[%emt 0:01:41]} Rh8 {[%emt 0:02:49]} 24. Rd7+ {[%emt 0:01:45]} Kf8 {[%emt 0:04:51]} 25. Rxf7+ {[%emt 0:00:30]} Ke8 {[%emt 0:00:30]} 26. Nxf6+ {[%emt 0:00:00]} Kd8 {[%emt 0:00:00]} 27. e7+ {[%emt 0:00:00]} 1-0

[Event "FIDE World Cadets GU12 2022"]
[Site "Batumi"]
[Date "2022.09.16"]
[Round "1"]
[White "Misheel, Bold"]
[Black "Kocharyan, Sona"]
[Result "1/2-1/2"]
[ECO "B26"]
[WhiteElo "1593"]
[BlackElo "1259"]
[Annotator "NA COMBH"]
[PlyCount "132"]
[EventDate "2022.09.16"]
[EventType "swiss"]
[EventCountry "GEO"]
[SourceTitle "playchess.com"]
[Source "ChessBase"]
[SourceQuality "1"]
[TimeControl "5400+30"]

1. e4 {[%emt 0:01:00]} c5 {[%emt 0:01:00]} 2. Nc3 {[%emt 0:00:30]} e6 {[%emt 0:00:30]} 3. d3 {[%emt 0:00:00]} Nc6 {[%emt 0:00:00]} 4. g3 {[%emt 0:00:00]} g6 {[%emt 0:01:00]} 5. Bg2 {[%emt 0:00:30]} Bg7 {[%emt 0:00:30]} 6. Be3 {[%emt 0:01:30]} d6 {[%emt 0:02:30]} 7. Qd2 {[%emt 0:00:30]} Nge7 {[%emt 0:00:30]} 8. f4 {[%emt 0:02:30]} Qa5 {[%emt 0:07:30]} 9. Nge2 {[%emt 0:03:30]} Nd4 {[%emt 0:03:30]} 10. Nxd4 {[%emt 0:04:30]} cxd4 {[%emt 0:05:30]} 11. Nd1 {[%emt 0:05:30]} Qc7 {[%emt 0:04:30]} 12. Bf2 {[%emt 0:00:00]} e5 {[%emt 0:02:30]} 13. Rc1 {[%emt 0:01:00]} Be6 {[%emt 0:02:30]} 14. a3 {[%emt 0:01:30]} Rc8 {[%emt 0:01:30]} 15. O-O {[%emt 0:01:30]} O-O {[%emt 0:02:30]} 16. c3 {[%emt 0:00:30]} f5 {[%emt 0:02:30]} 17. Bh3 {[%emt 0:01:30]} Kh8 {[%emt 0:01:30]} 18. Kh1 {[%emt 0:02:30]} exf4 {[%emt 0:06:30]} 19. gxf4 {[%emt 0:00:30]} a6 {[%emt 0:05:30]} 20. Bh4 {[%emt 0:00:30]} dxc3 {[%emt 0:03:30]} 21. Nxc3 {[%emt 0:00:30]} Qd7 {[%emt 0:00:30]} 22. Rfe1 {[%emt 0:01:30]} Rfe8 {[%emt 0:01:30]} 23. Bxe7 {[%emt 0:00:30]} Rxe7 {[%emt 0:03:30]} 24. Bg2 {[%emt 0:02:30]} Rce8 {[%emt 0:03:30]} 25. Re2 {[%emt 0:00:30]} fxe4 {[%emt 0:03:30]} 26. dxe4 {[%emt 0:01:30]} Bg4 {[%emt 0:04:30]} 27. Rf2 {[%emt 0:00:30]} Rf8 {[%emt 0:01:30]} 28. Nd5 {[%emt 0:00:30]} Ref7 {[%emt 0:02:30]} 29. Rc7 {[%emt 0:01:30]} Qb5 {[%emt 0:01:30]} 30. Rxf7 {[%emt 0:00:30]} Rxf7 {[%emt 0:00:30]} 31. Ne3 {[%emt 0:00:30]} Bc8 {[%emt 0:04:30]} 32. Qxd6 {[%emt 0:00:30]} Rd7 {[%emt 0:03:30]} 33. Qb8 {[%emt 0:00:30]} Rd8 {[%emt 0:00:30]} 34. Qc7 {[%emt 0:00:30]} Rf8 {[%emt 0:01:37]} 35. Qc2 {[%emt 0:00:30]} Bd4 {[%emt 0:02:21]} 36. Qd2 {[%emt 0:01:30]} Qb6 {[%emt 0:01:09]} 37. Nd5 {[%emt 0:00:30]} Qc5 {[%emt 0:01:27]} 38. Rf1 {[%emt 0:01:30]} Bg7 {[%emt 0:00:51]} 39. Qf2 {[%emt 0:00:30]} Bd4 {[%emt 0:01:37]} 40. Qd2 {[%emt 0:00:30]} Bg7 {[%emt 0:00:00]} 41. Qb4 {[%emt 0:00:30]} Qc2 {[%emt 0:00:59]} 42. b3 {[%emt 0:01:30]} Qd3 {[%emt 0:01:43]} 43. Ne7 {[%emt 0:00:30]} b5 {[%emt 0:01:40]} 44. Nd5 {[%emt 0:02:30]} Be6 {[%emt 0:01:26]} 45. Nc7 {[%emt 0:00:00]} Bc8 {[%emt 0:01:32]} 46. a4 {[%emt 0:02:00]} bxa4 {[%emt 0:01:33]} 47. bxa4 {[%emt 0:00:30]} Kg8 {[%emt 0:02:05]} 48. Nd5 {[%emt 0:00:00]} Be6 {[%emt 0:01:09]} 49. Qd6 {[%emt 0:01:00]} Bxd5 {[%emt 0:01:19]} 50. Qxd5+ {[%emt 0:00:30]} Qxd5 {[%emt 0:00:30]} 51. exd5 {[%emt 0:00:30]} Rd8 {[%emt 0:00:00]} 52. f5 {[%emt 0:00:30]} gxf5 {[%emt 0:01:29]} 53. Rxf5 {[%emt 0:00:30]} Rd6 {[%emt 0:00:07]} 54. Bf3 {[%emt 0:00:00]} Bf6 {[%emt 0:00:47]} 55. Kg2 {[%emt 0:01:00]} h6 {[%emt 0:00:30]} 56. Rf4 {[%emt 0:00:00]} Kf7 {[%emt 0:01:25]} 57. Rc4 {[%emt 0:00:00]} Bd8 {[%emt 0:01:18]} 58. Rc6 {[%emt 0:00:30]} Ke7 {[%emt 0:00:00]} 59. h3 {[%emt 0:00:30]} Kd7 {[%emt 0:00:34]} 60. Rxd6+ {[%emt 0:01:30]} Kxd6 {[%emt 0:00:30]} 61. Kg3 {[%emt 0:00:30]} Bg5 {[%emt 0:00:30]} 62. Kg4 {[%emt 0:00:30]} a5 {[%emt 0:00:30]} 63. Kh5 {[%emt 0:00:30]} Bf4 {[%emt 0:00:00]} 64. Kg6 {[%emt 0:00:00]} Bg5 {[%emt 0:00:00]} 65. Kf5 {[%emt 0:00:00]} Bc1 {[%emt 0:00:00]} 66. Ke4 {[%emt 0:00:00]} Bg5 {[%emt 0:00:00]} 1/2-1/2

[Event "FIDE World Cadets GU12 2022"]
[Site "Batumi"]
[Date "2022.09.16"]
[Round "1"]
[White "Shreya G Hipparagi"]
[Black "Kirthika B"]
[Result "1-0"]
[ECO "B92"]
[WhiteElo "1574"]
[BlackElo "1247"]
[Annotator "NA COMBH"]
[PlyCount "93"]
[EventDate "2022.09.16"]
[EventType "swiss"]
[EventCountry "GEO"]
[SourceTitle "playchess.com"]
[Source "ChessBase"]
[SourceQuality "1"]
[TimeControl "5400+30"]

1. e4 {[%emt 0:01:00]} c5 {[%emt 0:01:00]} 2. Nf3 {[%emt 0:00:30]} d6 {[%emt 0:00:00]} 3. d4 {[%emt 0:00:30]} cxd4 {[%emt 0:00:00]} 4. Nxd4 {[%emt 0:00:30]} Nf6 {[%emt 0:00:00]} 5. Nc3 {[%emt 0:00:30]} a6 {[%emt 0:00:00]} 6. Be2 {[%emt 0:01:30]} e5 {[%emt 0:00:30]} 7. Nb3 {[%emt 0:00:30]} Be7 {[%emt 0:00:00]} 8. Be3 {[%emt 0:01:30]} Be6 {[%emt 0:00:00]} 9. O-O {[%emt 0:00:30]} O-O {[%emt 0:00:30]} 10. f4 {[%emt 0:03:30]} exf4 {[%emt 0:01:30]} 11. Bxf4 {[%emt 0:01:30]} Nc6 {[%emt 0:02:30]} 12. Kh1 {[%emt 0:04:30]} d5 {[%emt 0:04:30]} 13. e5 {[%emt 0:13:30]} Ne4 {[%emt 0:00:30]} 14. Nxe4 {[%emt 0:00:30]} dxe4 {[%emt 0:00:30]} 15. Nd2 {[%emt 0:04:30]} Qd5 {[%emt 0:16:30]} 16. Bc4 {[%emt 0:04:30]} Qd7 {[%emt 0:01:30]} 17. Qe2 {[%emt 0:04:30]} Nd4 {[%emt 0:07:30]} 18. Bxe6 {[%emt 0:01:30]} Nxe2 {[%emt 0:01:30]} 19. Bxd7 {[%emt 0:05:30]} Nxf4 {[%emt 0:00:30]} 20. Rxf4 {[%emt 0:00:30]} Bg5 {[%emt 0:00:00]} 21. Rf2 {[%emt 0:12:30]} e3 {[%emt 0:16:00]} 22. Rf5 {[%emt 0:01:30]} Rad8 {[%emt 0:01:30]} 23. Rxg5 {[%emt 0:04:30]} Rxd7 {[%emt 0:02:30]} 24. Nf3 {[%emt 0:00:30]} Rfd8 {[%emt 0:04:30]} 25. Re1 {[%emt 0:02:30]} Kf8 {[%emt 0:00:30]} 26. e6 {[%emt 0:00:30]} Rd1 {[%emt 0:00:30]} 27. e7+ {[%emt 0:00:30]} Kxe7 {[%emt 0:00:30]} 28. Re5+ {[%emt 0:00:30]} Kf6 {[%emt 0:00:30]} 29. R5xe3 {[%emt 0:00:00]} Rxe1+ {[%emt 0:00:30]} 30. Rxe1 {[%emt 0:00:00]} Rc8 {[%emt 0:00:30]} 31. c3 {[%emt 0:00:30]} b5 {[%emt 0:00:30]} 32. Kg1 {[%emt 0:00:00]} h6 {[%emt 0:00:00]} 33. Kf2 {[%emt 0:00:00]} g5 {[%emt 0:00:00]} 34. Rd1 {[%emt 0:00:00]} Ke6 {[%emt 0:00:00]} 35. Nd4+ {[%emt 0:00:00]} Kf6 {[%emt 0:00:00]} 36. g4 {[%emt 0:00:30]} Ke5 {[%emt 0:00:00]} 37. Kf3 {[%emt 0:00:30]} Rc7 {[%emt 0:00:00]} 38. Nf5 {[%emt 0:00:30]} Rc6 {[%emt 0:00:00]} 39. Re1+ {[%emt 0:00:30]} Kf6 {[%emt 0:00:00]} 40. Nxh6 {[%emt 0:00:30]} Kg6 {[%emt 0:01:30]} 41. Nf5 {[%emt 0:00:30]} Kf6 {[%emt 0:00:30]} 42. Rd1 {[%emt 0:00:30]} Ke5 {[%emt 0:00:00]} 43. Rd8 {[%emt 0:00:30]} Re6 {[%emt 0:00:00]} 44. Rd7 {[%emt 0:00:30]} f6 {[%emt 0:00:30]} 45. Re7 {[%emt 0:00:30]} Rxe7 {[%emt 0:00:30]} 46. Nxe7 {[%emt 0:00:30]} Ke6 {[%emt 0:00:00]} 47. Nc6 {[%emt 0:00:00]} 1-0

[Event "FIDE World Cadets GU12 2022"]
[Site "Batumi"]
[Date "2022.09.16"]
[Round "1"]
[White "Margad, Munkhpurev"]
[Black "Preobrazhenskaya, Diana"]
[Result "0-1"]
[ECO "B90"]
[WhiteElo "1372"]
[BlackElo "1994"]
[Annotator "TA"]
[PlyCount "49"]
[EventDate "2022.09.16"]
[EventType "swiss"]
[EventCountry "GEO"]
[SourceTitle "playchess.com"]
[Source "ChessBase"]
[SourceQuality "1"]
[TimeControl "5400+30"]

{[%evp 15,49,6,24,0,23,17,15,10,26,-16,-21,-24,-26,-37,-27,-36,-8,-35,-25,-26,-25,-50,-47,-177,-175,-191,-110,-98,-68,-498,-481,-428,-420,-29990,-29991,-29994]} 1. e4 {[%emt 0:01:00]} c5 {[%emt 0:01:00]} 2. Nf3 {[%emt 0:00:30]} d6 {[%emt 0:00:30]} 3. d4 {[%emt 0:00:30]} Nf6 {[%emt 0:00:00]} 4. Nc3 {[%emt 0:00:00]} cxd4 {[%emt 0:00:00]} 5. Nxd4 {[%emt 0:00:00]} a6 {[%emt 0:00:30]} 6. Be3 {[%emt 0:00:30]} e5 {[%emt 0:00:30]} 7. Nb3 {[%emt 0:00:00]} Be6 {[%emt 0:00:00]} 8. Qd2 {[%emt 0:00:00]} Be7 {[%emt 0:00:00]} 9. O-O-O {[%emt 0:02:30] B90: Sicilian Najdorf: Unusual White 6th moves, 6 Be3 Ng4 and 6 Be3 e5.} Ng4 {[%emt 0:06:30]} 10. g3 {[%emt 0:00:30]} Nxe3 {[%emt 0:03:30]} 11. Qxe3 {[%emt 0:00:30] The position is equal.} Nd7 {[%emt 0:01:30][%cal Bb8d7,Bd7b6,Bb6c4][%mdl 32]} 12. Nd5 {[%emt 0:08:30]} Bxd5 {[%emt 0:02:30]} 13. Rxd5 {[%emt 0:00:30]} O-O {[%emt 0:03:30]} 14. Kb1 {[%emt 0:05:30]} b5 {[%emt 0:02:30]} 15. f4 {[%emt 0:08:30] [#]} Nb6 $146 {[%emt 0:02:30]} ({Predecessor:} 15... Qc7 16. Be2 Rac8 17. Rc1 Nb6 18. Rdd1 Nc4 19. Bxc4 bxc4 20. Nd2 Rb8 21. c3 d5 22. exd5 {½-½ (41) Raineri,V (2146)-Gromovs,S (2284) Arvier 2011}) 16. Rd3 {[%emt 0:06:30]} Nc4 {[%emt 0:03:30]} 17. Qe2 {[%emt 0:01:30]} Qb6 {[%emt 0:04:30]} 18. f5 {[%emt 0:02:30]} a5 {[%emt 0:05:30]} 19. g4 {[%emt 0:10:30]} ({Better is} 19. Nd2 $15) 19... a4 $19 {[%emt 0:09:30] [#] Strongly threatening ...a3.} 20. Nc1 {[%emt 0:06:30]} a3 {[%emt 0:20:30]} (20... Bh4 $19 {Hoping for ...Rfc8.} 21. c3 b4 22. cxb4 (22. Rh3 $2 Rfc8 $19) 22... a3) 21. b3 $17 {[%emt 0:01:30]} Qa5 $36 {[%emt 0:02:30][%cal Oe7g5][%mdl 2048] Black is pushing. Black is more active.} 22. Rg3 $2 {[%emt 0:26:17][%mdl 8192]} (22. c3 $15) 22... Nd2+ $19 {[%emt 0:05:30]} 23. Ka1 {[%emt 0:00:01]} Rac8 {[%emt 0:00:30] Against c3} 24. Qxb5 {[%emt 0:02:14] [#]} (24. c3 $19 Bg5 25. Qxb5 Rxc3 26. Bc4 Qxb5 27. Bxb5 Rxg3 28. hxg3) 24... Rxc2 $1 {[%emt 0:03:30][%cal Rc2c1]} 25. Bc4 {Weighted Error Value: White=0.98/Black=0.14 (very precise)} (25. Qc6 Rxc6) 0-1

[Event "FIDE World Cadets GU12 2022"]
[Site "Batumi"]
[Date "2022.09.16"]
[Round "1"]
[White "Shimanskaia, Tatiana"]
[Black "Kaliakhmet, Elnaz"]
[Result "0-1"]
[ECO "B41"]
[WhiteElo "1353"]
[BlackElo "1864"]
[Annotator "NA COMBH"]
[PlyCount "65"]
[EventDate "2022.09.16"]
[EventType "swiss"]
[EventCountry "GEO"]
[SourceTitle "playchess.com"]
[Source "ChessBase"]
[SourceQuality "1"]
[TimeControl "5400+30"]

1. e4 {[%emt 0:01:00]} c5 {[%emt 0:01:00]} 2. Nf3 {[%emt 0:00:00]} e6 {[%emt 0:00:30]} 3. d4 {[%emt 0:00:00]} cxd4 {[%emt 0:00:30]} 4. Nxd4 {[%emt 0:01:30]} a6 {[%emt 0:00:30]} 5. c4 {[%emt 0:00:30]} Nf6 {[%emt 0:00:30]} 6. Nc3 {[%emt 0:00:30]} Bb4 {[%emt 0:00:30]} 7. Qd3 {[%emt 0:01:30]} d5 {[%emt 0:00:30]} 8. exd5 {[%emt 0:04:30]} exd5 {[%emt 0:00:30]} 9. Be2 {[%emt 0:04:30]} O-O {[%emt 0:00:30]} 10. O-O {[%emt 0:01:30]} Nc6 {[%emt 0:01:30]} 11. Nxc6 {[%emt 0:10:30]} bxc6 {[%emt 0:00:30]} 12. Bg5 {[%emt 0:02:30]} Be6 {[%emt 0:23:30]} 13. cxd5 {[%emt 0:08:30]} cxd5 {[%emt 0:02:30]} 14. Bf3 {[%emt 0:07:30]} Be7 {[%emt 0:10:30]} 15. Ne2 {[%emt 0:05:30]} h6 {[%emt 0:14:30]} 16. Be3 {[%emt 0:03:30]} Ng4 {[%emt 0:17:30]} 17. Nf4 {[%emt 0:12:30]} Ne5 {[%emt 0:02:30]} 18. Qe2 {[%emt 0:06:30]} Nxf3+ {[%emt 0:00:30]} 19. Qxf3 {[%emt 0:01:30]} Bf6 {[%emt 0:00:30]} 20. Nxe6 {[%emt 0:02:30]} fxe6 {[%emt 0:00:00]} 21. Qg4 {[%emt 0:01:30]} Qe7 {[%emt 0:08:31]} 22. Bxh6 {[%emt 0:04:17]} Bxb2 {[%emt 0:00:24]} 23. Rab1 {[%emt 0:01:22]} Bf6 {[%emt 0:01:10]} 24. Rb6 {[%emt 0:02:25]} e5 {[%emt 0:01:06]} 25. Rfb1 {[%emt 0:03:44]} Rac8 {[%emt 0:06:42]} 26. Rb7 {[%emt 0:07:29]} Rc7 {[%emt 0:00:32]} 27. Rxc7 {[%emt 0:01:01]} Qxc7 {[%emt 0:00:04]} 28. Qe6+ {[%emt 0:02:00]} Qf7 {[%emt 0:02:03]} 29. Qg4 {[%emt 0:01:07]} Bg5 {[%emt 0:03:17]} 30. Qe2 {[%emt 0:03:27]} Bxh6 {[%emt 0:00:41]} 31. Rb2 {[%emt 0:00:13]} Qf4 {[%emt 0:00:31]} 32. g3 {[%emt 0:00:34]} Qd4 {[%emt 0:00:52]} 33. Rb7 {[%emt 0:01:21]} 0-1

[Event "FIDE World Cadets GU12 2022"]
[Site "Batumi"]
[Date "2022.09.16"]
[Round "1"]
[White "Rathnayake, R M Dulinma Hemalni"]
[Black "Goriachkina, Oksana"]
[Result "0-1"]
[ECO "B15"]
[WhiteElo "1321"]
[BlackElo "1748"]
[Annotator "NA COMBH"]
[PlyCount "134"]
[EventDate "2022.09.16"]
[EventType "swiss"]
[EventCountry "GEO"]
[SourceTitle "playchess.com"]
[Source "ChessBase"]
[SourceQuality "1"]
[TimeControl "5400+30"]

1. e4 {[%emt 0:01:00]} c6 {[%emt 0:01:00]} 2. d4 {[%emt 0:00:30]} d5 {[%emt 0:00:30]} 3. Nc3 {[%emt 0:00:30]} dxe4 {[%emt 0:00:30]} 4. Nxe4 {[%emt 0:00:00]} Nf6 {[%emt 0:00:00]} 5. Nxf6+ {[%emt 0:00:00]} exf6 {[%emt 0:00:00]} 6. Bf4 {[%emt 0:01:30]} Be6 {[%emt 0:00:30]} 7. Nf3 {[%emt 0:01:30]} Bd6 {[%emt 0:02:30]} 8. Bg3 {[%emt 0:02:30]} O-O {[%emt 0:01:30]} 9. Bd3 {[%emt 0:05:30]} Re8 {[%emt 0:01:30]} 10. O-O {[%emt 0:00:30]} Bxg3 {[%emt 0:07:30]} 11. hxg3 {[%emt 0:01:30]} Nd7 {[%emt 0:02:30]} 12. c3 {[%emt 0:04:30]} Nf8 {[%emt 0:01:30]} 13. Qc2 {[%emt 0:02:30]} Qa5 {[%emt 0:03:30]} 14. b4 {[%emt 0:06:30]} Qc7 {[%emt 0:02:30]} 15. a4 {[%emt 0:02:30]} b6 {[%emt 0:03:30]} 16. a5 {[%emt 0:04:30]} Red8 {[%emt 0:19:30]} 17. Rfd1 {[%emt 0:10:30]} Bd5 {[%emt 0:03:30]} 18. c4 {[%emt 0:01:30]} Bxf3 {[%emt 0:03:30]} 19. gxf3 {[%emt 0:00:30]} g6 {[%emt 0:00:30]} 20. Qb2 {[%emt 0:06:30]} Rab8 {[%emt 0:03:30]} 21. a6 {[%emt 0:08:30]} f5 {[%emt 0:03:30]} 22. Rac1 {[%emt 0:06:30]} Qe7 {[%emt 0:02:30]} 23. Bf1 {[%emt 0:05:30]} Qf6 {[%emt 0:02:30]} 24. Rc2 {[%emt 0:09:55]} c5 {[%emt 0:06:30]} 25. Rcd2 {[%emt 0:08:54]} Ne6 {[%emt 0:02:30]} 26. d5 {[%emt 0:00:42]} Qxb2 {[%emt 0:00:30]} 27. Rxb2 {[%emt 0:00:08]} cxb4 {[%emt 0:00:30]} 28. Rxb4 {[%emt 0:00:09]} Nc5 {[%emt 0:00:30]} 29. Ra1 {[%emt 0:00:15]} Kf8 {[%emt 0:01:30]} 30. Re1 {[%emt 0:01:52]} Re8 {[%emt 0:00:30]} 31. Re3 {[%emt 0:00:12]} Re7 {[%emt 0:00:30]} 32. Rb1 {[%emt 0:00:47]} Rbe8 {[%emt 0:00:30]} 33. Ra3 {[%emt 0:01:51]} Re1 {[%emt 0:03:30]} 34. Raa1 {[%emt 0:00:12]} Rxb1 {[%emt 0:00:30]} 35. Rxb1 {[%emt 0:00:30]} Ke7 {[%emt 0:00:30]} 36. Be2 {[%emt 0:00:58]} Kd6 {[%emt 0:00:30]} 37. Ra1 {[%emt 0:00:26]} Rxe2 {[%emt 0:00:30]} 38. Rc1 {[%emt 0:01:21]} Ra2 {[%emt 0:01:30]} 39. g4 {[%emt 0:00:32]} fxg4 {[%emt 0:01:30]} 40. fxg4 {[%emt 0:00:17]} Rxa6 {[%emt 0:04:01]} 41. Kg2 {[%emt 0:00:36]} Ra2 {[%emt 0:01:04]} 42. Kg3 {[%emt 0:00:34]} Ne4+ {[%emt 0:02:37]} 43. Kf3 {[%emt 0:00:05]} Ke5 {[%emt 0:00:49]} 44. Re1 {[%emt 0:01:01]} Rxf2+ {[%emt 0:00:30]} 45. Ke3 {[%emt 0:00:00]} Rc2 {[%emt 0:00:19]} 46. d6 {[%emt 0:01:17]} Rc3+ {[%emt 0:00:59]} 47. Ke2 {[%emt 0:00:31]} Kxd6 {[%emt 0:00:30]} 48. Kf1 {[%emt 0:00:08]} Rxc4 {[%emt 0:00:37]} 49. Rd1+ {[%emt 0:00:30]} Ke6 {[%emt 0:00:00]} 50. Kg2 {[%emt 0:00:23]} Nf6 {[%emt 0:00:24]} 51. Re1+ {[%emt 0:00:00]} Re4 {[%emt 0:00:23]} 52. Ra1 {[%emt 0:00:25]} Rxg4+ {[%emt 0:00:00]} 53. Kf3 {[%emt 0:00:32]} a5 {[%emt 0:00:16]} 54. Rb1 {[%emt 0:00:03]} Rb4 {[%emt 0:00:00]} 55. Re1+ {[%emt 0:00:30]} Ne4 {[%emt 0:00:14]} 56. Rh1 {[%emt 0:00:14]} f5 {[%emt 0:00:52]} 57. Rc1 {[%emt 0:00:30]} a4 {[%emt 0:00:30]} 58. Ke2 {[%emt 0:00:00]} a3 {[%emt 0:00:00]} 59. Ra1 {[%emt 0:00:30]} a2 {[%emt 0:00:00]} 60. Kd3 {[%emt 0:00:13]} Ra4 {[%emt 0:00:22]} 61. Kc2 {[%emt 0:00:30]} b5 {[%emt 0:00:30]} 62. Kb2 {[%emt 0:00:00]} f4 {[%emt 0:00:00]} 63. Kc2 {[%emt 0:00:05]} f3 {[%emt 0:00:00]} 64. Kb2 {[%emt 0:00:30]} f2 {[%emt 0:00:00]} 65. Kb3 {[%emt 0:00:24]} f1=Q {[%emt 0:00:17]} 66. Rxf1 {[%emt 0:01:57]} Nd2+ {[%emt 0:16:49]} 67. Kb2 {[%emt 0:00:30]} Nxf1 {[%emt 0:00:00]} 0-1

[Event "FIDE World Cadets GU12 2022"]
[Site "Batumi"]
[Date "2022.09.16"]
[Round "1"]
[White "Enkhuyanga Gantsolmon"]
[Black "Shubhi Gupta"]
[Result "0-1"]
[ECO "E05"]
[WhiteElo "1301"]
[BlackElo "1733"]
[Annotator "NA COMBH"]
[PlyCount "98"]
[EventDate "2022.09.16"]
[EventType "swiss"]
[EventCountry "GEO"]
[SourceTitle "playchess.com"]
[Source "ChessBase"]
[SourceQuality "1"]
[TimeControl "5400+30"]

1. d4 {[%emt 0:01:00]} d5 {[%emt 0:02:00]} 2. Nf3 {[%emt 0:00:30]} Nf6 {[%emt 0:00:30]} 3. g3 {[%emt 0:00:30]} e6 {[%emt 0:00:30]} 4. Bg2 {[%emt 0:00:30]} Be7 {[%emt 0:01:30]} 5. O-O {[%emt 0:00:30]} O-O {[%emt 0:00:30]} 6. c4 {[%emt 0:00:30]} dxc4 {[%emt 0:01:30]} 7. Qc2 {[%emt 0:01:30]} a6 {[%emt 0:01:30]} 8. a4 {[%emt 0:02:30]} Bd7 {[%emt 0:01:30]} 9. Ne5 {[%emt 0:01:30]} Bc6 {[%emt 0:05:30]} 10. Nxc6 {[%emt 0:02:30]} Nxc6 {[%emt 0:00:30]} 11. Bxc6 {[%emt 0:01:30]} bxc6 {[%emt 0:00:30]} 12. Qxc4 {[%emt 0:01:30]} Qd5 {[%emt 0:04:30]} 13. Qd3 {[%emt 0:03:30]} c5 {[%emt 0:03:30]} 14. Be3 {[%emt 0:09:30]} Rfd8 {[%emt 0:08:30]} 15. dxc5 {[%emt 0:07:30]} Qh5 {[%emt 0:03:30]} 16. Qc4 {[%emt 0:03:30]} Ng4 {[%emt 0:07:30]} 17. h4 {[%emt 0:01:30]} Nxe3 {[%emt 0:00:30]} 18. fxe3 {[%emt 0:00:30]} Bxc5 {[%emt 0:01:30]} 19. Qe4 {[%emt 0:03:30]} Qxe2 {[%emt 0:03:30]} 20. Na3 {[%emt 0:07:30]} Qxe3+ {[%emt 0:02:30]} 21. Qxe3 {[%emt 0:00:30]} Bxe3+ {[%emt 0:00:00]} 22. Kg2 {[%emt 0:00:30]} Bd4 {[%emt 0:00:00]} 23. Rab1 {[%emt 0:00:30]} Rab8 {[%emt 0:01:30]} 24. b4 {[%emt 0:03:30]} f6 {[%emt 0:02:30]} 25. Rfc1 {[%emt 0:04:30]} Be5 {[%emt 0:01:30]} 26. Nc4 {[%emt 0:01:30]} Bd4 {[%emt 0:07:30]} 27. Na5 {[%emt 0:01:30]} Be3 {[%emt 0:05:30]} 28. Re1 {[%emt 0:05:30]} Bb6 {[%emt 0:02:30]} 29. Nc6 {[%emt 0:02:30]} Rd2+ {[%emt 0:00:30]} 30. Kh3 {[%emt 0:00:30]} Re8 {[%emt 0:01:30]} 31. Red1 {[%emt 0:02:30]} Rc2 {[%emt 0:05:30]} 32. Rbc1 {[%emt 0:03:30]} Rxc1 {[%emt 0:00:30]} 33. Rxc1 {[%emt 0:00:30]} e5 {[%emt 0:00:30]} 34. a5 {[%emt 0:01:30]} Be3 {[%emt 0:01:30]} 35. Rd1 {[%emt 0:01:30]} Bd4 {[%emt 0:05:30]} 36. Re1 {[%emt 0:03:30]} Kf8 {[%emt 0:02:06]} 37. Kg4 {[%emt 0:01:30]} g6 {[%emt 0:03:00]} 38. h5 {[%emt 0:00:30]} Kf7 {[%emt 0:01:57]} 39. Re2 {[%emt 0:04:45]} f5+ {[%emt 0:01:22]} 40. Kg5 {[%emt 0:00:58]} h6+ {[%emt 0:00:56]} 41. Kh4 {[%emt 0:00:17]} g5+ {[%emt 0:00:33]} 42. Kh3 {[%emt 0:00:07]} Kf8 {[%emt 0:02:01]} 43. g4 {[%emt 0:02:29]} f4 {[%emt 0:00:14]} 44. Re4 {[%emt 0:02:51]} Bb2 {[%emt 0:04:04]} 45. Kg2 {[%emt 0:06:00]} Re6 {[%emt 0:01:30]} 46. Rc4 {[%emt 0:00:37]} e4 {[%emt 0:01:02]} 47. Kf2 {[%emt 0:00:48]} e3+ {[%emt 0:00:28]} 48. Ke2 {[%emt 0:00:20]} f3+ {[%emt 0:00:35]} 49. Kxf3 {[%emt 0:00:21]} e2 {[%emt 0:00:10]} 0-1